[Event "Grandmaster Tournament Blitz"]
[Site "Biel/Bienne, Switzerland"]
[Date "2019.07.27"]
[Round "13.3"]
[White "Maghsoodloo, Parham"]
[Black "Cori, Jorge"]
[Result "1/2-1/2"]
[ECO "D11"]
[WhiteElo "2719"]
[BlackElo "2558"]
[PlyCount "202"]
[EventDate "2019.??.??"]
[EventType "blitz"]
[TimeControl "3+2"]
[WhiteClock "0:00:20"]
[BlackClock "0:00:28"]

1. Nf3 {[%emt 0:00:00]} d5 {[%emt 0:00:00]} 2. d4 {[%emt 0:00:00]} c6 {[%emt 0:
00:00]} 3. Bf4 {[%emt 0:00:00]} Nf6 {[%emt 0:00:00]} 4. e3 {[%emt 0:00:00]} Bg4
{[%emt 0:00:00]} 5. c4 {[%emt 0:00:00]} Bxf3 {[%emt 0:00:00]} 6. gxf3 {[%emt 0:
00:00]} e6 {[%emt 0:00:00]} 7. Nc3 {[%emt 0:00:00]} Nbd7 {[%emt 0:00:00]} 8.
Bg3 {[%emt 0:00:00]} Be7 {[%emt 0:00:00]} 9. e4 {[%emt 0:00:00]} a6 {[%emt 0:
00:00]} 10. Be2 {[%emt 0:00:00]} b5 {[%emt 0:00:00]} 11. e5 {[%emt 0:00:00]}
Ng8 {[%emt 0:00:00]} 12. cxd5 {[%emt 0:00:00]} cxd5 {[%emt 0:00:00]} 13. a4 {
[%emt 0:00:00]} b4 {[%emt 0:00:00]} 14. Nb1 {[%emt 0:00:00]} Nh6 {[%emt 0:00:
00]} 15. Bd3 {[%emt 0:00:00]} Qb6 {[%emt 0:00:00]} 16. Bc2 {[%emt 0:00:00]} b3
{[%emt 0:00:00]} 17. Bxb3 {[%emt 0:00:00]} Nf5 {[%emt 0:00:00]} 18. a5 {
[%emt 0:00:00]} Qxd4 {[%emt 0:00:00]} 19. Ba4 {[%emt 0:00:00]} Bb4+ {[%emt 0:
00:00]} 20. Nc3 {[%emt 0:00:00]} Qxd1+ {[%emt 0:00:00]} 21. Kxd1 {[%emt 0:00:
00]} Ke7 {[%emt 0:00:00]} 22. Bf4 {[%emt 0:00:00]} h6 {[%emt 0:00:00]} 23. h4 {
[%emt 0:00:00]} Rhc8 {[%emt 0:00:00]} 24. Ne2 {[%emt 0:00:00]} Rab8 {[%emt 0:
00:00]} 25. Bc2 {[%emt 0:00:00]} Bc5 {[%emt 0:00:00]} 26. Bxf5 {[%emt 0:00:00]}
exf5 {[%emt 0:00:00]} 27. e6 {[%emt 0:00:00]} fxe6 {[%emt 0:00:00]} 28. Bxb8 {
[%emt 0:00:00]} Rxb8 {[%emt 0:00:00]} 29. Nf4 {[%emt 0:00:00]} Bxf2 {[%emt 0:
00:00]} 30. Nd3 {[%emt 0:00:00]} Bd4 {[%emt 0:00:00]} 31. Ra4 {[%emt 0:00:04]}
e5 {[%emt 0:00:00]} 32. f4 {[%emt 0:00:16]} Rb3 {[%emt 0:00:04]} 33. Rxd4 {
[%emt 0:00:18]} exd4 {[%emt 0:00:04]} 34. Kc2 {[%emt 0:00:03]} Rb8 {[%emt 0:00:
05]} 35. Rg1 {[%emt 0:00:03]} Kf6 {[%emt 0:00:07]} 36. h5 {[%emt 0:00:02]} Kf7
{[%emt 0:00:07]} 37. Rg6 {[%emt 0:00:02]} Nf6 {[%emt 0:00:01]} 38. Ne5+ {
[%emt 0:00:03]} Kg8 {[%emt 0:00:04]} 39. Nf3 {[%emt 0:00:14]} Rb4 {[%emt 0:00:
07]} 40. Nh4 {[%emt 0:00:05]} d3+ {[%emt 0:00:04]} 41. Kxd3 {[%emt 0:00:03]}
Rxf4 {[%emt 0:00:00]} 42. Ng2 {[%emt 0:00:00]} Ra4 {[%emt 0:00:13]} 43. Ne3 {
[%emt 0:00:02]} Rxa5 {[%emt 0:00:01]} 44. Nxf5 {[%emt 0:00:01]} Nxh5 {[%emt 0:
00:01]} 45. Kd4 {[%emt 0:00:11]} Rb5 {[%emt 0:00:03]} 46. Rxa6 {[%emt 0:00:02]}
Rxb2 47. Nxh6+ {[%emt 0:00:06]} gxh6 {[%emt 0:00:05]} 48. Rxh6 {[%emt 0:00:02]}
Nf4 {[%emt 0:00:06]} 49. Ke5 {[%emt 0:00:01]} Rb4 {[%emt 0:00:03]} 50. Rf6 {
[%emt 0:00:03]} Re4+ {[%emt 0:00:01]} 51. Kf5 {[%emt 0:00:00]} Kg7 {[%emt 0:00:
03]} 52. Rd6 {[%emt 0:00:01]} Kf7 {[%emt 0:00:01]} 53. Rxd5 {[%emt 0:00:01]}
Ra4 {[%emt 0:00:01]} 54. Rd7+ {[%emt 0:00:01]} Ke8 55. Rh7 {[%emt 0:00:05]} Nd3
{[%emt 0:00:08]} 56. Ke6 {[%emt 0:00:05]} Ra6+ {[%emt 0:00:01]} 57. Kd5 {
[%emt 0:00:02]} Nf4+ {[%emt 0:00:01]} 58. Kc4 {[%emt 0:00:01]} Ng6 {[%emt 0:00:
03]} 59. Kb5 {[%emt 0:00:02]} Re6 {[%emt 0:00:00]} 60. Rc7 {[%emt 0:00:01]} Ne7
{[%emt 0:00:01]} 61. Kc5 {[%emt 0:00:02]} Kd8 {[%emt 0:00:01]} 62. Rb7 {
[%emt 0:00:01]} Rc6+ {[%emt 0:00:03]} 63. Kb5 {[%emt 0:00:01]} Rc2 {[%emt 0:00:
01]} 64. Ka4 {[%emt 0:00:01]} Nd5 {[%emt 0:00:03]} 65. Kb3 {[%emt 0:00:01]} Rc1
{[%emt 0:00:01]} 66. Kb2 {[%emt 0:00:01]} Rf1 {[%emt 0:00:01]} 67. Rh7 {
[%emt 0:00:03]} Ne7 {[%emt 0:00:01]} 68. Kc3 {[%emt 0:00:04]} Kd7 {[%emt 0:00:
00]} 69. Kd3 {[%emt 0:00:00]} Ke6 {[%emt 0:00:02]} 70. Ke4 {[%emt 0:00:01]}
Re1+ {[%emt 0:00:01]} 71. Kd3 {[%emt 0:00:01]} Nd5 {[%emt 0:00:03]} 72. Kd2 {
[%emt 0:00:01]} Ra1 {[%emt 0:00:01]} 73. Rh5 {[%emt 0:00:02]} Ra3 {[%emt 0:00:
01]} 74. Rg5 {[%emt 0:00:01]} Kd6 {[%emt 0:00:01]} 75. Rf5 {[%emt 0:00:02]} Kc5
{[%emt 0:00:00]} 76. Rg5 {[%emt 0:00:02]} Rh3 {[%emt 0:00:01]} 77. Rg4 {
[%emt 0:00:01]} Nf6 {[%emt 0:00:02]} 78. Ra4 {[%emt 0:00:01]} Kd5 {[%emt 0:00:
01]} 79. Ra5+ {[%emt 0:00:01]} Ke4 80. Ra4+ {[%emt 0:00:01]} Ke5 {[%emt 0:00:
01]} 81. Ra5+ {[%emt 0:00:00]} Nd5 82. Ra4 {[%emt 0:00:01]} Rh2+ {[%emt 0:00:
04]} 83. Kd3 {[%emt 0:00:01]} Nf4+ {[%emt 0:00:02]} 84. Kc4 {[%emt 0:00:03]}
Rc2+ {[%emt 0:00:04]} 85. Kb3 {[%emt 0:00:01]} Rc8 {[%emt 0:00:01]} 86. Rc4 {
[%emt 0:00:00]} Rb8+ {[%emt 0:00:00]} 87. Kc2 {[%emt 0:00:01]} Ne6 {[%emt 0:00:
10]} 88. Kc3 {[%emt 0:00:04]} Rh8 {[%emt 0:00:02]} 89. Rg4 {[%emt 0:00:03]} Kd5
{[%emt 0:00:01]} 90. Rg3 {[%emt 0:00:04]} Ra8 {[%emt 0:00:01]} 91. Rd3+ {
[%emt 0:00:02]} Kc5 {[%emt 0:00:01]} 92. Re3 {[%emt 0:00:01]} Nf4 {[%emt 0:00:
02]} 93. Re5+ {[%emt 0:00:01]} Nd5+ {[%emt 0:00:00]} 94. Kb2 {[%emt 0:00:01]}
Kc4 {[%emt 0:00:04]} 95. Rh5 {[%emt 0:00:02]} Ne3 {[%emt 0:00:07]} 96. Rh4+ {
[%emt 0:00:09]} Kd3 {[%emt 0:00:02]} 97. Kb3 {[%emt 0:00:01]} Rb8+ {[%emt 0:00:
02]} 98. Ka4 {[%emt 0:00:01]} Nc4 {[%emt 0:00:11]} 99. Rd4+ {[%emt 0:00:02]}
Kc3 {[%emt 0:00:01]} 100. Rd3+ {[%emt 0:00:01]} Kb2 {[%emt 0:00:06]} 101. Rb3+
{[%emt 0:00:03]} Rxb3 {[%emt 0:00:01]} 1/2-1/2

[Event "Grandmaster Tournament Blitz"]
[Site "Biel/Bienne, Switzerland"]
[Date "2019.07.27"]
[Round "13.4"]
[White "Abdusattorov, Nodirbek"]
[Black "Georgiadis, Nico"]
[Result "1-0"]
[ECO "A31"]
[WhiteElo "2550"]
[BlackElo "2464"]
[PlyCount "111"]
[EventDate "2019.??.??"]
[EventType "blitz"]
[TimeControl "3+2"]
[WhiteClock "0:00:42"]
[BlackClock "0:00:06"]

1. d4 {[%emt 0:00:00]} Nf6 {[%emt 0:00:00]} 2. c4 {[%emt 0:00:00]} c5 {[%emt 0:
00:00]} 3. Nf3 {[%emt 0:00:02]} cxd4 4. Nxd4 {[%emt 0:00:00]} e5 {[%emt 0:00:
00]} 5. Nb5 {[%emt 0:00:00]} d5 {[%emt 0:00:00]} 6. cxd5 {[%emt 0:00:00]} Bc5 {
[%emt 0:00:00]} 7. e3 {[%emt 0:00:00]} O-O {[%emt 0:00:00]} 8. Be2 {[%emt 0:00:
00]} Bf5 {[%emt 0:00:00]} 9. O-O {[%emt 0:00:00]} Nxd5 {[%emt 0:00:00]} 10.
N1c3 {[%emt 0:00:00]} Nxc3 {[%emt 0:00:00]} 11. Nxc3 {[%emt 0:00:00]} Nc6 {
[%emt 0:00:00]} 12. a3 {[%emt 0:00:00]} a5 {[%emt 0:00:00]} 13. Bd2 {[%emt 0:
00:00]} Rc8 {[%emt 0:00:00]} 14. Rc1 {[%emt 0:00:00]} Be6 {[%emt 0:00:00]} 15.
Ne4 {[%emt 0:00:00]} Be7 {[%emt 0:00:00]} 16. Nc5 {[%emt 0:00:00]} Bd5 {
[%emt 0:00:00]} 17. b4 {[%emt 0:00:00]} axb4 {[%emt 0:00:00]} 18. axb4 {
[%emt 0:00:00]} b6 {[%emt 0:00:00]} 19. Na6 {[%emt 0:00:00]} Qd7 {[%emt 0:00:
00]} 20. Bc3 {[%emt 0:00:00]} Qe6 {[%emt 0:00:00]} 21. b5 {[%emt 0:00:00]} Nb8
{[%emt 0:00:04]} 22. Nxb8 {[%emt 0:00:00]} Rxb8 {[%emt 0:00:01]} 23. Qd2 {
[%emt 0:00:00]} Rfd8 {[%emt 0:00:01]} 24. Qb2 {[%emt 0:00:00]} f6 {[%emt 0:00:
02]} 25. Rfd1 {[%emt 0:00:00]} Kh8 {[%emt 0:00:03]} 26. Bb4 {[%emt 0:00:00]} g6
{[%emt 0:00:13]} 27. Bxe7 {[%emt 0:00:00]} Qxe7 {[%emt 0:00:01]} 28. h3 {
[%emt 0:00:00]} Kg7 {[%emt 0:00:00]} 29. Rc3 {[%emt 0:00:00]} Be6 {[%emt 0:00:
04]} 30. Rxd8 {[%emt 0:00:06]} Rxd8 {[%emt 0:00:00]} 31. Rc6 {[%emt 0:00:02]}
Rb8 {[%emt 0:00:13]} 32. Qc3 {[%emt 0:00:01]} Rb7 {[%emt 0:00:03]} 33. Bf3 {
[%emt 0:00:01]} Bf7 {[%emt 0:00:05]} 34. Rxf6 {[%emt 0:00:08]} Kxf6 {[%emt 0:
00:09]} 35. Qc6+ {[%emt 0:00:01]} Kg7 {[%emt 0:00:06]} 36. Qxb7 {[%emt 0:00:01]
} Qxb7 {[%emt 0:00:01]} 37. Bxb7 {[%emt 0:00:01]} Bc4 {[%emt 0:00:00]} 38. Bc6
{[%emt 0:00:03]} g5 {[%emt 0:00:02]} 39. g4 {[%emt 0:00:10]} Kf6 {[%emt 0:00:
01]} 40. Kg2 {[%emt 0:00:02]} h6 {[%emt 0:00:05]} 41. Kg3 {[%emt 0:00:01]} Bf1
{[%emt 0:00:01]} 42. h4 {[%emt 0:00:03]} Be2 {[%emt 0:00:01]} 43. f4 {[%emt 0:
00:12]} exf4+ {[%emt 0:00:01]} 44. exf4 {[%emt 0:00:01]} Bf1 {[%emt 0:00:10]}
45. fxg5+ {[%emt 0:00:02]} hxg5 {[%emt 0:00:01]} 46. h5 {[%emt 0:00:01]} Bd3 {
[%emt 0:00:03]} 47. Bd7 {[%emt 0:00:01]} Ke5 {[%emt 0:00:03]} 48. Kf2 {[%emt 0:
00:05]} Kf6 {[%emt 0:00:06]} 49. Ke3 {[%emt 0:00:01]} Bc4 {[%emt 0:00:02]} 50.
Kd4 {[%emt 0:00:01]} Be2 {[%emt 0:00:01]} 51. Kd5 {[%emt 0:00:01]} Ke7 52. Kc6
{[%emt 0:00:05]} Bf3+ {[%emt 0:00:04]} 53. Kc7 {[%emt 0:00:01]} Be2 {[%emt 0:
00:01]} 54. h6 {[%emt 0:00:03]} Kf6 {[%emt 0:00:03]} 55. Kxb6 {[%emt 0:00:01]}
Kg6 {[%emt 0:00:01]} 56. Kc7 {[%emt 0:00:01]} 1-0

[Event "Grandmaster Tournament Blitz"]
[Site "Biel/Bienne, Switzerland"]
[Date "2019.07.27"]
[Round "14.1"]
[White "Shankland, Sam"]
[Black "Abdusattorov, Nodirbek"]
[Result "0-1"]
[ECO "B07"]
[WhiteElo "2660"]
[BlackElo "2550"]
[PlyCount "148"]
[EventDate "2019.??.??"]
[EventType "blitz"]
[TimeControl "3+2"]
[WhiteClock "0:00:08"]
[BlackClock "0:00:13"]

1. d4 {[%emt 0:00:00]} d6 {[%emt 0:00:00]} 2. e4 {[%emt 0:00:00]} Nf6 {[%emt 0:
00:00]} 3. Nc3 {[%emt 0:00:00]} e5 {[%emt 0:00:00]} 4. Nge2 {[%emt 0:00:00]}
Nbd7 {[%emt 0:00:00]} 5. g3 {[%emt 0:00:00]} Be7 {[%emt 0:00:00]} 6. Bg2 {
[%emt 0:00:00]} O-O {[%emt 0:00:00]} 7. O-O {[%emt 0:00:00]} c6 {[%emt 0:00:00]
} 8. a4 {[%emt 0:00:00]} a5 {[%emt 0:00:00]} 9. h3 {[%emt 0:00:00]} Re8 {
[%emt 0:00:00]} 10. Be3 {[%emt 0:00:00]} Bf8 {[%emt 0:00:00]} 11. d5 {[%emt 0:
00:00]} cxd5 {[%emt 0:00:00]} 12. exd5 {[%emt 0:00:00]} Nc5 {[%emt 0:00:00]}
13. Nb5 {[%emt 0:00:00]} b6 {[%emt 0:00:00]} 14. Nec3 {[%emt 0:00:00]} Ba6 {
[%emt 0:00:00]} 15. Qd2 {[%emt 0:00:00]} Qd7 {[%emt 0:00:00]} 16. b3 {[%emt 0:
00:00]} Rac8 {[%emt 0:00:00]} 17. Kh2 {[%emt 0:00:00]} g6 {[%emt 0:00:00]} 18.
f4 {[%emt 0:00:00]} e4 {[%emt 0:00:00]} 19. f5 {[%emt 0:00:00]} Bg7 {[%emt 0:
00:00]} 20. Rae1 {[%emt 0:00:00]} gxf5 {[%emt 0:00:00]} 21. Bd4 {[%emt 0:00:00]
} Bxb5 {[%emt 0:00:00]} 22. Nxb5 {[%emt 0:00:00]} e3 {[%emt 0:00:00]} 23. Rxe3
{[%emt 0:00:00]} Nfe4 {[%emt 0:00:00]} 24. Qd1 {[%emt 0:00:00]} Be5 {[%emt 0:
00:00]} 25. Qh5 {[%emt 0:00:00]} f4 {[%emt 0:00:00]} 26. Rxe4 {[%emt 0:00:00]}
fxg3+ {[%emt 0:00:00]} 27. Kh1 {[%emt 0:00:00]} Nxe4 {[%emt 0:00:00]} 28. Bxe4
{[%emt 0:00:00]} f6 {[%emt 0:00:00]} 29. Bf5 {[%emt 0:00:00]} Qg7 {[%emt 0:00:
00]} 30. Rg1 {[%emt 0:00:00]} Rcd8 {[%emt 0:00:10]} 31. Be6+ {[%emt 0:00:03]}
Kh8 {[%emt 0:00:07]} 32. Qf3 {[%emt 0:00:03]} Rf8 {[%emt 0:00:11]} 33. Bf2 {
[%emt 0:00:16]} Qh6 {[%emt 0:00:08]} 34. Bxg3 {[%emt 0:00:08]} Rg8 {[%emt 0:00:
02]} 35. Bxe5 {[%emt 0:00:12]} Rxg1+ {[%emt 0:00:01]} 36. Kxg1 {[%emt 0:00:01]}
fxe5 {[%emt 0:00:02]} 37. Qg3 {[%emt 0:00:07]} Rf8 {[%emt 0:00:03]} 38. Nxd6 {
[%emt 0:00:06]} Qc1+ {[%emt 0:00:01]} 39. Kh2 {[%emt 0:00:07]} Qd2+ {[%emt 0:
00:04]} 40. Qg2 {[%emt 0:00:05]} Qf4+ {[%emt 0:00:03]} 41. Kh1 {[%emt 0:00:01]}
e4 {[%emt 0:00:06]} 42. Nxe4 {[%emt 0:00:06]} Qc1+ {[%emt 0:00:01]} 43. Kh2 {
[%emt 0:00:01]} Qf4+ {[%emt 0:00:02]} 44. Ng3 {[%emt 0:00:02]} h5 {[%emt 0:00:
09]} 45. Kg1 {[%emt 0:00:07]} Qe3+ {[%emt 0:00:02]} 46. Kh1 Qc1+ {[%emt 0:00:
06]} 47. Kh2 {[%emt 0:00:03]} Qf4 {[%emt 0:00:01]} 48. Qe2 {[%emt 0:00:05]} h4
{[%emt 0:00:02]} 49. Qh5+ {[%emt 0:00:00]} Kg7 {[%emt 0:00:01]} 50. Qg4+ {
[%emt 0:00:01]} Qxg4 {[%emt 0:00:03]} 51. hxg4 {[%emt 0:00:01]} Rf2+ {[%emt 0:
00:01]} 52. Kh3 {[%emt 0:00:01]} hxg3 {[%emt 0:00:01]} 53. Kxg3 {[%emt 0:00:01]
} Rxc2 {[%emt 0:00:00]} 54. d6 {[%emt 0:00:01]} Kf6 {[%emt 0:00:08]} 55. d7 {
[%emt 0:00:02]} Rd2 {[%emt 0:00:02]} 56. Bf5 {[%emt 0:00:01]} Ke5 {[%emt 0:00:
05]} 57. Kf3 {[%emt 0:00:01]} Rd4 {[%emt 0:00:08]} 58. Ke2 {[%emt 0:00:03]} Rd6
{[%emt 0:00:03]} 59. Ke3 {[%emt 0:00:00]} Rd4 {[%emt 0:00:04]} 60. g5 {[%emt 0:
00:08]} Rd6 {[%emt 0:00:06]} 61. g6 {[%emt 0:00:04]} Kf6 {[%emt 0:00:02]} 62.
Ke4 {[%emt 0:00:03]} Rd1 {[%emt 0:00:01]} 63. Bg4 {[%emt 0:00:02]} Rd2 {
[%emt 0:00:03]} 64. Bf5 {[%emt 0:00:05]} Rd1 {[%emt 0:00:00]} 65. Bh3 {[%emt 0:
00:03]} Kxg6 {[%emt 0:00:03]} 66. Ke5 {[%emt 0:00:02]} Kf7 {[%emt 0:00:01]} 67.
Be6+ {[%emt 0:00:04]} Ke7 68. Bf5 {[%emt 0:00:00]} Rd2 {[%emt 0:00:02]} 69. Ke4
{[%emt 0:00:02]} Rb2 {[%emt 0:00:00]} 70. Be6 {[%emt 0:00:01]} Rb1 {[%emt 0:00:
02]} 71. Ke5 {[%emt 0:00:03]} Re1+ {[%emt 0:00:03]} 72. Kf5 {[%emt 0:00:01]}
Re3 {[%emt 0:00:01]} 73. Bc4 {[%emt 0:00:04]} Kxd7 {[%emt 0:00:00]} 74. Kf4 {
[%emt 0:00:01]} Re7 {[%emt 0:00:02]} 0-1

[Event "Grandmaster Tournament Blitz"]
[Site "Biel/Bienne, Switzerland"]
[Date "2019.07.27"]
[Round "14.2"]
[White "Georgiadis, Nico"]
[Black "Maghsoodloo, Parham"]
[Result "0-1"]
[ECO "A86"]
[WhiteElo "2558"]
[BlackElo "2719"]
[PlyCount "96"]
[EventDate "2019.??.??"]
[EventType "blitz"]
[TimeControl "3+2"]
[WhiteClock "0:00:05"]
[BlackClock "0:00:27"]

1. d4 {[%emt 0:00:00]} f5 {[%emt 0:00:00]} 2. c4 {[%emt 0:00:00]} Nf6 {[%emt 0:
00:00]} 3. g3 {[%emt 0:00:00]} g6 {[%emt 0:00:00]} 4. Bg2 {[%emt 0:00:00]} Bg7
{[%emt 0:00:00]} 5. Nc3 {[%emt 0:00:00]} O-O {[%emt 0:00:00]} 6. Nf3 {[%emt 0:
00:00]} b6 {[%emt 0:00:00]} 7. Ne5 {[%emt 0:00:00]} c6 {[%emt 0:00:00]} 8. O-O
{[%emt 0:00:03]} Bb7 9. Nd3 {[%emt 0:00:00]} Na6 {[%emt 0:00:00]} 10. e3 {
[%emt 0:00:00]} e6 {[%emt 0:00:00]} 11. b4 {[%emt 0:00:00]} Nc7 {[%emt 0:00:00]
} 12. Qb3 {[%emt 0:00:00]} d5 {[%emt 0:00:00]} 13. a4 {[%emt 0:00:00]} Ne4 {
[%emt 0:00:00]} 14. Rd1 {[%emt 0:00:00]} Rb8 {[%emt 0:00:00]} 15. Ne2 {[%emt 0:
00:00]} g5 {[%emt 0:00:00]} 16. Ba3 {[%emt 0:00:00]} Nd6 {[%emt 0:00:00]} 17.
cxd5 {[%emt 0:00:00]} exd5 {[%emt 0:00:00]} 18. Rac1 {[%emt 0:00:00]} Re8 {
[%emt 0:00:00]} 19. Rc2 {[%emt 0:00:00]} b5 {[%emt 0:00:00]} 20. Nc5 {[%emt 0:
00:00]} Nc4 {[%emt 0:00:00]} 21. Bc1 {[%emt 0:00:00]} a6 {[%emt 0:00:00]} 22.
Ra2 {[%emt 0:00:00]} Bc8 {[%emt 0:00:00]} 23. axb5 {[%emt 0:00:00]} axb5 {
[%emt 0:00:00]} 24. Ra7 {[%emt 0:00:08]} Ra8 {[%emt 0:00:00]} 25. Rxa8 {
[%emt 0:00:12]} Nxa8 {[%emt 0:00:00]} 26. Nc3 {[%emt 0:00:03]} Nab6 {[%emt 0:
00:00]} 27. Qa2 {[%emt 0:00:12]} Qe7 {[%emt 0:00:00]} 28. Ne2 {[%emt 0:00:08]}
Be6 {[%emt 0:00:00]} 29. Qb1 {[%emt 0:00:03]} Qf6 {[%emt 0:00:00]} 30. Bh3 {
[%emt 0:00:03]} Nd6 {[%emt 0:00:03]} 31. Bg2 {[%emt 0:00:08]} Bf7 {[%emt 0:00:
03]} 32. Nc3 {[%emt 0:00:02]} Bg6 {[%emt 0:00:01]} 33. Qb3 {[%emt 0:00:03]}
Ndc4 {[%emt 0:00:08]} 34. Nd3 {[%emt 0:00:05]} h5 {[%emt 0:00:06]} 35. Ne2 {
[%emt 0:00:03]} h4 {[%emt 0:00:01]} 36. Nc5 {[%emt 0:00:02]} Bh5 {[%emt 0:00:
01]} 37. Re1 {[%emt 0:00:01]} Ra8 {[%emt 0:00:06]} 38. Qb1 {[%emt 0:00:03]}
hxg3 {[%emt 0:00:07]} 39. hxg3 {[%emt 0:00:01]} Kf7 {[%emt 0:00:04]} 40. f3 {
[%emt 0:00:03]} Bg6 {[%emt 0:00:02]} 41. e4 {[%emt 0:00:01]} fxe4 {[%emt 0:00:
21]} 42. fxe4 {[%emt 0:00:01]} Kg8 {[%emt 0:00:01]} 43. Rf1 {[%emt 0:00:02]}
Qe7 44. Qb3 {[%emt 0:00:03]} dxe4 {[%emt 0:00:03]} 45. Qc2 {[%emt 0:00:04]} Re8
{[%emt 0:00:03]} 46. Qa2 {[%emt 0:00:00]} Nd5 {[%emt 0:00:01]} 47. Qa6 {
[%emt 0:00:03]} Nxb4 {[%emt 0:00:02]} 48. Qa1 {[%emt 0:00:02]} Qxc5 {[%emt 0:
00:04]} 0-1

[Event "Grandmaster Tournament Blitz"]
[Site "Biel/Bienne, Switzerland"]
[Date "2019.07.27"]
[Round "14.3"]
[White "Cori, Jorge"]
[Black "Vidit, Santosh Gujrathi"]
[Result "0-1"]
[ECO "E14"]
[WhiteElo "2464"]
[BlackElo "2694"]
[PlyCount "70"]
[EventDate "2019.??.??"]
[EventType "blitz"]
[TimeControl "3+2"]
[WhiteClock "0:00:08"]
[BlackClock "0:01:09"]

1. d4 {[%emt 0:00:00]} Nf6 {[%emt 0:00:00]} 2. Nf3 {[%emt 0:00:00]} d5 {
[%emt 0:00:00]} 3. c4 {[%emt 0:00:00]} e6 {[%emt 0:00:00]} 4. e3 {[%emt 0:00:
00]} b6 {[%emt 0:00:00]} 5. Nc3 {[%emt 0:00:00]} Bb7 {[%emt 0:00:00]} 6. Bd3 {
[%emt 0:00:00]} Bd6 {[%emt 0:00:00]} 7. O-O {[%emt 0:00:00]} dxc4 {[%emt 0:00:
00]} 8. Bxc4 {[%emt 0:00:00]} O-O {[%emt 0:00:00]} 9. Nb5 {[%emt 0:00:00]} Be7
{[%emt 0:00:00]} 10. b3 {[%emt 0:00:00]} Nbd7 {[%emt 0:00:00]} 11. Bb2 {
[%emt 0:00:00]} a6 {[%emt 0:00:00]} 12. Nc3 {[%emt 0:00:00]} b5 {[%emt 0:00:00]
} 13. Be2 {[%emt 0:00:00]} c5 {[%emt 0:00:00]} 14. Rc1 {[%emt 0:00:00]} Qb6 {
[%emt 0:00:00]} 15. dxc5 {[%emt 0:00:00]} Nxc5 {[%emt 0:00:00]} 16. Qc2 {
[%emt 0:00:00]} Rac8 {[%emt 0:00:00]} 17. Qb1 {[%emt 0:00:00]} b4 {[%emt 0:00:
00]} 18. Na4 {[%emt 0:00:00]} Nxa4 {[%emt 0:00:00]} 19. bxa4 {[%emt 0:00:00]}
Qa5 {[%emt 0:00:00]} 20. Bd4 {[%emt 0:00:00]} Qxa4 {[%emt 0:00:00]} 21. Ng5 {
[%emt 0:00:00]} g6 {[%emt 0:00:00]} 22. Qb2 {[%emt 0:00:00]} Nd5 {[%emt 0:00:
00]} 23. Nf3 {[%emt 0:00:00]} Qa3 {[%emt 0:00:00]} 24. Qxa3 {[%emt 0:00:00]}
bxa3 {[%emt 0:00:00]} 25. Ne5 {[%emt 0:00:00]} Rxc1 {[%emt 0:00:00]} 26. Rxc1 {
[%emt 0:00:00]} Rc8 {[%emt 0:00:00]} 27. Rxc8+ {[%emt 0:00:00]} Bxc8 {[%emt 0:
00:00]} 28. Nc6 {[%emt 0:00:00]} Bd6 {[%emt 0:00:00]} 29. e4 {[%emt 0:00:00]}
Nf4 {[%emt 0:00:00]} 30. Bf3 {[%emt 0:00:21]} Bd7 {[%emt 0:00:00]} 31. e5 {
[%emt 0:00:01]} Bf8 {[%emt 0:00:00]} 32. Na5 {[%emt 0:00:22]} Bb5 {[%emt 0:00:
00]} 33. g3 {[%emt 0:00:21]} Nd3 {[%emt 0:00:00]} 34. Bd1 {[%emt 0:00:03]} Nc1
{[%emt 0:00:08]} 35. Bb3 {[%emt 0:00:02]} Ne2+ {[%emt 0:00:01]} 0-1

[Event "Grandmaster Tournament Blitz"]
[Site "Biel/Bienne, Switzerland"]
[Date "2019.07.27"]
[Round "1.3"]
[White "Georgiadis, Nico"]
[Black "Vidit, Santosh Gujrathi"]
[Result "0-1"]
[ECO "D02"]
[WhiteElo "2464"]
[BlackElo "2694"]
[PlyCount "120"]
[EventDate "2019.??.??"]
[EventType "blitz"]
[TimeControl "3+2"]
[WhiteClock "0:00:05"]
[BlackClock "0:00:06"]

1. d4 {[%emt 0:00:00]} Nf6 {[%emt 0:00:00]} 2. Bf4 {[%emt 0:00:00]} d5 {
[%emt 0:00:00]} 3. e3 {[%emt 0:00:00]} e6 {[%emt 0:00:00]} 4. Nf3 {[%emt 0:00:
00]} Bd6 {[%emt 0:00:00]} 5. Bg3 {[%emt 0:00:00]} c5 {[%emt 0:00:00]} 6. c3 {
[%emt 0:00:00]} Qc7 {[%emt 0:00:00]} 7. Nbd2 {[%emt 0:00:00]} Nbd7 {[%emt 0:00:
00]} 8. Bxd6 {[%emt 0:00:00]} Qxd6 {[%emt 0:00:00]} 9. dxc5 {[%emt 0:00:00]}
Nxc5 {[%emt 0:00:00]} 10. Nc4 {[%emt 0:00:00]} Qc7 {[%emt 0:00:00]} 11. Nce5 {
[%emt 0:00:00]} O-O {[%emt 0:00:00]} 12. Bd3 {[%emt 0:00:00]} Nxd3+ {[%emt 0:
00:00]} 13. Qxd3 {[%emt 0:00:00]} Ne4 {[%emt 0:00:00]} 14. Qc2 {[%emt 0:00:00]}
f6 {[%emt 0:00:00]} 15. Nd3 {[%emt 0:00:00]} e5 {[%emt 0:00:00]} 16. O-O {
[%emt 0:00:00]} Be6 {[%emt 0:00:00]} 17. Rfd1 {[%emt 0:00:00]} Rfd8 {[%emt 0:
00:00]} 18. Rac1 {[%emt 0:00:00]} Rac8 {[%emt 0:00:00]} 19. h3 {[%emt 0:00:00]}
Nd6 {[%emt 0:00:00]} 20. Nb4 {[%emt 0:00:00]} Nc4 {[%emt 0:00:00]} 21. b3 {
[%emt 0:00:00]} Nb6 {[%emt 0:00:00]} 22. e4 {[%emt 0:00:00]} dxe4 {[%emt 0:00:
00]} 23. Rxd8+ {[%emt 0:00:00]} Rxd8 {[%emt 0:00:00]} 24. Qxe4 {[%emt 0:00:00]}
a5 {[%emt 0:00:00]} 25. Nd3 {[%emt 0:00:04]} Bd5 {[%emt 0:00:00]} 26. Qe3 {
[%emt 0:00:19]} e4 {[%emt 0:00:00]} 27. c4 {[%emt 0:00:01]} Bc6 {[%emt 0:00:00]
} 28. Nd4 {[%emt 0:00:21]} Rxd4 {[%emt 0:00:00]} 29. Qxd4 {[%emt 0:00:01]} exd3
{[%emt 0:00:00]} 30. Qxd3 {[%emt 0:00:01]} Nd7 {[%emt 0:00:01]} 31. Rd1 {
[%emt 0:00:02]} Qe5 {[%emt 0:00:15]} 32. a3 {[%emt 0:00:06]} Qe7 {[%emt 0:00:
26]} 33. Qc3 {[%emt 0:00:08]} Qxa3 {[%emt 0:00:09]} 34. Ra1 {[%emt 0:00:01]}
Qb4 {[%emt 0:00:03]} 35. Qe3 {[%emt 0:00:05]} h6 {[%emt 0:00:02]} 36. Rd1 {
[%emt 0:00:02]} Ne5 {[%emt 0:00:09]} 37. Rd8+ {[%emt 0:00:01]} Kh7 {[%emt 0:00:
03]} 38. f4 {[%emt 0:00:01]} Nf7 {[%emt 0:00:06]} 39. Qd3+ {[%emt 0:00:02]} g6
{[%emt 0:00:02]} 40. Ra8 {[%emt 0:00:04]} Qc5+ {[%emt 0:00:02]} 41. Kh2 {
[%emt 0:00:02]} Qf2 {[%emt 0:00:02]} 42. Qg3 {[%emt 0:00:04]} Qd2 {[%emt 0:00:
02]} 43. f5 {[%emt 0:00:04]} g5 {[%emt 0:00:03]} 44. h4 {[%emt 0:00:02]} Ne5 {
[%emt 0:00:05]} 45. hxg5 {[%emt 0:00:03]} Nf3+ {[%emt 0:00:01]} 46. Kh3 {
[%emt 0:00:01]} Nxg5+ {[%emt 0:00:02]} 47. Kh2 {[%emt 0:00:01]} Nf3+ {[%emt 0:
00:05]} 48. Kh3 {[%emt 0:00:00]} Ng5+ {[%emt 0:00:01]} 49. Kh2 {[%emt 0:00:01]}
h5 {[%emt 0:00:01]} 50. Qc7+ {[%emt 0:00:02]} Bd7 {[%emt 0:00:03]} 51. Rd8 {
[%emt 0:00:01]} Nf3+ {[%emt 0:00:01]} 52. Kg3 {[%emt 0:00:02]} Ne5 {[%emt 0:00:
01]} 53. Qb6 {[%emt 0:00:04]} Qg5+ {[%emt 0:00:02]} 54. Kf2 {[%emt 0:00:02]}
Qxf5+ {[%emt 0:00:01]} 55. Kg1 {[%emt 0:00:02]} h4 {[%emt 0:00:03]} 56. Qxb7 {
[%emt 0:00:04]} Kg7 {[%emt 0:00:03]} 57. Qa8 {[%emt 0:00:01]} Qb1+ {[%emt 0:00:
03]} 58. Kf2 {[%emt 0:00:02]} Qb2+ {[%emt 0:00:02]} 59. Kg1 {[%emt 0:00:04]}
Qd4+ {[%emt 0:00:01]} 60. Kf1 {[%emt 0:00:02]} Qd1+ {[%emt 0:00:02]} 0-1